bitfinex-derivatives/quotes_SOLF0:USTF0_20250624
["timestamp","ask_amount","ask_price","bid_price","bid_amount"]
[1750742504993,42.2945,144.12,144.09,6.9356]
[1750742505202,5.75584686,144.11,144.09,6.9356]
[1750742505498,42.2945,144.12,144.09,6.9356]
[1750742505700,5.75514113,144.11,144.09,6.9356]
[1750742505897,42.2945,144.12,144.08,6.9359]
[1750742506092,12.69022093,144.11,144.08,6.9359]
[1750742506294,5.75532093,144.1,144.06,0.24]
[1750742506487,5.75532093,144.09,144.06,0.24]
[1750742506685,44.21235813,144.12,144.06,0.24]
[1750742506886,10.89790412,144.11,144.06,0.24]
[1750742507097,10.89790412,144.1,144.06,0.24]
[1750742507296,5.75613148,144.09,144.06,0.24]
[1750742507493,5.75181829,144.08,144.06,0.24]
[1750742507690,35.36,144.08,144.06,0.24]
[1750742508898,35.36,144.08,144.06,7.1771]
[1750742511497,5.735802,144.07,144.06,0.24]
[1750742513800,35.36,144.08,144.06,0.24]
[1750742514501,35.36,144.08,144.07,6.9366]
[1750742514699,41.09654383,144.08,144.07,6.9366]
[1750742514901,11.12185813,144.13,144.1,6.9347]
[1750742515209,46.22733123,144.12,144.08,3.4705918]
[1750742515411,5.73612006,144.11,144.08,3.4705918]
[1750742515604,35.36,144.13,144.12,6.9342]
[1750742515810,46.22560308,144.13,144.12,6.9342]
[1750742516508,46.2255924,144.13,144.12,6.9342]
[1750742516709,46.2255924,144.13,144.11,6.9345]
[1750742516912,5.73580711,144.12,144.11,6.9345]
[1750742519019,35.36,144.13,144.11,6.9345]
[1750742520222,35.36,144.13,144.1,6.935]
[1750742520715,5.7462323,144.12,144.11,6.9347]
[1750742520917,35.36,144.13,144.08,3.4705918]
[1750742521105,35.36,144.13,144.06,0.24]
[1750742521106,35.36,144.13,144.1,3.4705918]
[1750742521302,35.36,144.16,144.14,6.9331]
[1750742521517,5.74527578,144.15,144.14,6.9331]
[1750742522420,5.74527578,144.15,144.13,6.9335]
[1750742522617,35.36,144.16,144.13,6.9335]
[1750742522819,5.75516101,144.15,144.1,3.4705918]
[1750742523117,35.36,144.16,144.14,6.9332]
[1750742523314,5.75319141,144.15,144.14,6.9332]
[1750742523709,41.83585813,144.21,144.17,6.9316]
[1750742524010,5.1364467,144.2,144.17,6.9316]
[1750742524513,35.36,144.21,144.17,6.9316]
[1750742524921,42.2902,144.21,144.17,6.9316]
[1750742525116,5.12909275,144.2,144.14,3.4705918]
[1750742525620,5.12909275,144.2,144.12,4.558]
[1750742525621,8.59968455,144.2,144.12,8.0285918]
[1750742526114,12.06039275,144.19,144.14,6.9332]
[1750742527021,6.9313,144.19,144.14,6.9332]
[1750742527313,12.06039275,144.19,144.14,6.9332]
[1750742527505,6.9314,144.18,144.14,6.9332]
[1750742527711,35.36,144.17,144.14,6.9332]
[1750742528108,35.36,144.17,144.15,6.9327]
[1750742528316,35.36,144.17,144.12,8.0285918]
[1750742528513,35.36,144.17,144.16,6.9323]
[1750742528718,40.49725271,144.2,144.16,3.4705918]
[1750742528918,35.36,144.2,144.13,2.2476]
[1750742529121,35.36,144.2,144.17,3.4705918]
[1750742529518,35.36,144.2,144.19,6.9308]
[1750742530417,38.8221444,144.2,144.07,35.34]
[1750742530620,3.4621444,144.18,144.09,3.4621444]
[1750742530817,3.4621444,144.16,144.1,6.9349]
[1750742531018,35.34,144.15,144.1,6.9349]
[1750742531623,6.9335,144.14,144.1,6.9349]
[1750742532520,6.9335,144.14,144.1,7.1749]
[1750742533828,6.9333,144.14,144.11,6.9344]
[1750742534029,35.34,144.15,144.11,6.9344]
[1750742534223,42.273,144.15,144.11,6.9344]
[1750742534629,47.41513674,144.15,144.11,6.9344]
[1750742534934,35.34,144.15,144.1,0.24]
[1750742535729,35.34,144.15,144.13,6.9334]
[1750742536320,35.34,144.15,144.14,6.9332]
[1750742538226,40.46661616,144.18,144.16,6.9321]
[1750742538432,35.34,144.18,144.16,6.9321]
[1750742538632,9.80752009,144.19,144.16,6.9321]
[1750742538831,5.71600106,144.18,144.17,6.9318]
[1750742539142,35.34,144.21,144.17,3.4621444]
[1750742539438,35.34,144.21,144.2,6.9303]
[1750742539630,41.0611307,144.21,144.2,6.9303]
[1750742539941,41.0611307,144.21,144.17,3.4621444]
[1750742540142,35.34,144.21,144.19,6.9307]
[1750742540843,35.34,144.21,144.2,6.9303]
[1750742541044,41.81585813,144.25,144.19,3.4621444]
[1750742541342,5.71923479,144.24,144.22,6.9291]
[1750742541533,40.46313632,144.25,144.22,6.9291]
[1750742541734,5.71626223,144.24,144.22,6.9291]
[1750742542032,42.268,144.25,144.22,6.9291]
[1750742542233,5.74759448,144.24,144.22,6.9291]
[1750742542534,35.34,144.25,144.22,6.9291]
[1750742543542,35.34,144.25,144.19,3.4621444]
[1750742544235,35.34,144.25,144.23,6.9288]
[1750742544637,35.34,144.25,144.19,3.4621444]
[1750742545743,35.34,144.25,144.23,6.9289]
[1750742548240,35.34,144.25,144.22,6.9292]
[1750742549936,35.34,144.25,144.23,6.9288]
[1750742550134,35.34,144.25,144.2,3.4621444]
[1750742550938,35.34,144.25,144.22,6.9291]
[1750742552947,35.34,144.25,144.23,6.9289]
[1750742555139,35.34,144.25,144.24,6.9284]
[1750742555648,35.34,144.25,144.23,6.9287]
[1750742555848,35.34,144.25,144.2,3.4621444]
[1750742556152,634.76,144.3,144.24,3.4621444]
[1750742556334,634.76,144.3,144.21,35.66]
[1750742556335,35.66,144.3,144.26,3.4621444]
[1750742556540,35.66,144.3,144.28,3.4621444]
[1750742556843,35.66,144.3,144.28,6.9263]
[1750742557046,35.66,144.3,144.26,3.4621444]
[1750742557351,35.66,144.32,144.3,6.9253]
[1750742557544,35.66,144.32,144.28,3.4621444]
[1750742557744,35.66,144.32,144.31,6.9251]
[1750742558040,35.66,144.32,144.28,3.4621444]
[1750742558542,35.66,144.32,144.26,3.4621444]
[1750742558746,39.1221444,144.32,144.24,3.4621444]
[1750742559051,6.9264,144.29,144.24,3.4621444]
[1750742559342,35.66,144.28,144.26,6.9273]
[1750742559748,35.66,144.28,144.24,3.4621444]
[1750742560352,35.66,144.28,144.27,6.927]
[1750742561034,35.66,144.28,144.26,6.9274]
[1750742561640,35.66,144.28,144.27,6.927]
[1750742564446,35.66,144.28,144.26,6.9273]
[1750742565054,35.66,144.28,144.22,3.4621444]
[1750742565245,39.1221444,144.28,144.2,3.4621444]
[1750742565754,6.9273,144.27,144.23,6.9286]
[1750742566450,6.9273,144.27,144.24,6.9283]
[1750742566650,6.9273,144.27,144.2,3.4621444]
[1750742567647,6.9273,144.27,144.23,6.9287]
[1750742568649,39.1221444,144.28,144.2,3.4621444]
[1750742568951,39.1221444,144.28,144.17,6.7108]
[1750742568952,3.4621444,144.24,144.17,3.4621444]
[1750742569155,41.4248498,144.23,144.18,6.931]
[1750742569353,35.66,144.23,144.18,6.931]
[1750742569557,35.66,144.23,144.16,3.4621444]
[1750742569855,42.5891,144.23,144.19,6.9307]
[1750742574855,42.5891,144.23,144.16,3.4621444]
[1750742574856,6.9295,144.22,144.18,6.9311]
[1750742575060,35.66,144.23,144.16,3.4621444]
[1750742575356,42.5892,144.23,144.19,6.9307]
[1750742575554,35.66,144.23,144.16,3.4621444]
[1750742576258,6.9297,144.22,144.18,6.9312]
[1750742576468,3.4621444,144.22,144.16,3.4621444]
[1750742576756,6.93,144.21,144.17,6.9315]
[1750742577364,3.4621444,144.2,144.14,3.4621444]
[1750742577547,35.66,144.19,144.16,6.932]
[1750742578452,42.5912,144.19,144.15,6.9326]
[1750742578852,6.9314,144.18,144.14,6.9331]
[1750742579052,6.9314,144.18,144.12,3.4621444]
[1750742579261,37.9918,144.19,144.12,3.4621444]
[1750742580354,3.4621444,144.16,144.08,4.5965]
[1750742580661,3.4621444,144.12,144.04,3.4621444]
[1750742580858,42.4548,144.11,144.03,3.4621444]
[1750742581053,9.21797059,144.1,144.03,3.4621444]
[1750742581247,6.4239653,144.14,144.03,35.52]
[1750742581565,41.27784656,144.13,144.07,3.4621444]
[1750742581856,6.9352,144.1,144.06,6.9368]
[1750742582062,5.75784656,144.12,144.05,3.4621444]
[1750742582063,5.75784656,144.11,144.05,3.4621444]
[1750742582360,6.9353,144.1,144.06,6.9367]
[1750742582762,38.9821444,144.13,144.05,3.4621444]
[1750742582954,5.74844824,144.12,144.05,3.4621444]
[1750742583155,38.9821444,144.13,144.05,3.4621444]
[1750742583657,35.52,144.13,144.05,3.4621444]
[1750742583861,35.52,144.13,144.07,3.4621444]
[1750742585157,35.52,144.13,144.06,3.4621444]
[1750742585759,42.4538,144.13,144.09,6.9356]
[1750742586157,42.4538,144.13,144.06,3.4621444]
[1750742586565,42.4538,144.13,144.08,6.9361]
[1750742586861,42.4538,144.13,144.06,3.4621444]
[1750742587859,42.4538,144.13,144.09,6.9356]
[1750742588166,38.9821444,144.13,144.07,0.24]
[1750742588568,6.935,144.11,144.07,7.1765]
[1750742588965,38.9821444,144.13,144.07,0.24]
[1750742589160,6.935,144.11,144.07,7.1766]
[1750742589361,38.9821444,144.13,144.07,0.24]
[1750742590964,6.9351,144.11,144.07,0.24]
[1750742591868,6.9352,144.1,144.07,0.24]
[1750742592066,35.54,144.09,144.07,7.1766]
[1750742592571,35.54,144.09,144.07,0.24]
[1750742594367,35.54,144.09,144.07,7.1763]
[1750742594756,35.54,144.09,144.08,6.9361]
[1750742594955,35.54,144.09,144.07,0.24]
[1750742594956,35.54,144.13,144.07,0.24]
[1750742595566,39.0021444,144.13,144.07,0.24]
[1750742596067,6.9345,144.12,144.08,6.936]
[1750742596268,39.0021444,144.13,144.07,0.24]
[1750742596566,3.4621444,144.11,144.07,0.24]
[1750742597161,6.9361,144.08,144.07,0.24]
[1750742597368,42.4761,144.08,144.07,0.24]
[1750742598671,42.4761,144.08,144.04,6.9377]
[1750742598866,6.9367,144.07,144.03,6.9383]
[1750742599080,3.4621444,144.07,143.97,35.54]
[1750742599263,3.4621444,144.07,143.99,3.4621444]
[1750742599465,6.9374,144.06,144.02,6.9386]
[1750742599665,3.4621444,144.07,143.99,3.4621444]
[1750742601070,6.9374,144.06,144.02,6.9387]
[1750742601470,6.9374,144.06,144.03,0.24]
[1750742605580,10.3988444,144.07,144.03,0.24]
[1750742605980,40.2596,144.08,144.03,0.24]
[1750742606173,35.54,144.08,144.03,3.7021444]
[1750742606367,35.54,144.08,144.03,0.24]
[1750742606780,35.54,144.08,144.05,6.9374]
[1750742608285,42.4762,144.08,144.04,6.9379]
[1750742609590,42.4762,144.08,144.05,6.9374]
[1750742610783,35.54,144.08,144.06,6.9371]
[1750742611375,35.54,144.08,144.07,6.9366]
[1750742612081,2.3983,144.14,144.06,3.4621444]
[1750742612285,35.64,144.14,144.1,3.4621444]
[1750742612476,35.64,144.17,144.12,3.4621444]
[1750742612671,35.64,144.17,144.1,35.64]
[1750742612872,35.64,144.17,144.1,39.1021444]
[1750742613075,42.5719,144.17,144.1,39.1021444]
[1750742613388,35.64,144.17,144.12,3.4621444]
[1750742617186,35.64,144.17,144.14,6.933]
[1750742618986,42.5719,144.17,144.14,6.933]
[1750742619686,42.5719,144.17,144.13,6.9335]
[1750742620281,42.5719,144.17,144.14,6.9332]
[1750742620781,42.5719,144.17,144.13,6.9337]
[1750742621286,12.65085727,144.16,144.1,39.1021444]
[1750742621586,12.65085727,144.16,144.1,3.4621444]
[1750742621587,6.9324,144.16,144.1,3.4621444]
[1750742622187,46.0340444,144.17,144.13,6.9337]
[1750742622387,5.72036185,144.16,144.13,6.9337]
[1750742622589,46.0340444,144.17,144.13,6.9337]
[1750742623584,46.0340444,144.17,144.14,6.9332]
[1750742623988,39.1021444,144.17,144.14,6.9332]
[1750742624386,35.64,144.17,144.15,6.9325]
[1750742624592,35.64,144.17,144.12,3.4621444]
[1750742626393,35.62,144.2,144.14,3.4621444]
[1750742626786,35.62,144.2,144.19,6.9308]
[1750742631090,35.62,144.2,144.13,3.4621444]
[1750742632102,35.62,144.2,144.17,6.9316]
[1750742634005,35.62,144.2,144.18,6.9312]
[1750742634204,35.62,144.2,144.15,3.4621444]
[1750742634806,35.62,144.2,144.19,6.9308]
[1750742635005,35.62,144.2,144.15,3.4621444]
[1750742635498,35.62,144.2,144.17,6.9315]
[1750742635900,42.5507,144.2,144.16,6.9321]
[1750742636313,42.5507,144.2,144.15,3.4621444]
[1750742636806,42.5507,144.2,144.13,3.4621444]
[1750742637192,42.5507,144.2,144.16,6.9319]
[1750742637603,6.9314,144.18,144.15,6.9326]
[1750742637803,3.4621444,144.18,144.11,3.4621444]
[1750742638006,3.4621444,144.18,144.1,37.9182]
[1750742638307,3.4621444,144.18,144.1,35.6]
[1750742638501,6.9323,144.16,144.12,6.9339]
[1750742638706,35.6,144.15,144.12,6.9339]
[1750742639101,35.6,144.15,144.13,6.9336]
[1750742644009,8.6301653,144.23,144.09,4.5795]
[1750742644204,3.4621444,144.21,144.13,3.4621444]
[1750742644708,10.3922444,144.21,144.13,3.4621444]
[1750742645299,6.9301,144.21,144.18,6.9313]
[1750742645609,42.4295,144.22,144.15,3.4621444]
[1750742645808,35.5,144.22,144.19,6.9305]
[1750742646006,6.7927,144.23,144.19,6.9305]
[1750742646407,35.5,144.22,144.19,6.9305]
[1750742646805,42.4294,144.22,144.19,6.9305]
[1750742647005,35.5,144.22,144.17,3.4621444]
[1750742647406,35.5,144.22,144.19,6.9305]
[1750742648014,13.7219,144.23,144.19,6.9305]
[1750742648316,42.4295,144.22,144.17,3.4621444]
[1750742649112,35.5,144.22,144.19,6.9305]
[1750742649304,35.5,144.22,144.17,3.4621444]
[1750742649712,35.5,144.22,144.19,6.9305]
[1750742650215,38.9621444,144.22,144.11,35.5]
[1750742650506,3.4621444,144.18,144.1,5.7369444]
[1750742650701,35.5,144.17,144.14,6.9331]
[1750742651414,42.4321,144.17,144.13,6.9335]
[1750742652299,35.5,144.17,144.14,6.9332]
[1750742652609,35.5,144.17,144.12,3.4621444]
[1750742652817,35.5,144.17,144.16,6.9323]
[1750742654911,40.6699567,144.2,144.17,6.9315]
[1750742655211,35.5,144.2,144.17,6.9315]
[1750742655613,5.72525601,144.19,144.18,6.9313]
[1750742656408,5.72525601,144.19,144.17,6.9316]
[1750742656716,5.73123155,144.18,144.14,3.4621444]
[1750742657011,5.7313035,144.17,144.16,6.9321]
[1750742657713,45.8927444,144.2,144.16,6.9321]
[1750742657915,10.90757716,144.19,144.16,6.9321]
[1750742658112,5.73290197,144.18,144.16,6.9321]
[1750742658412,45.8927444,144.2,144.16,6.9321]
[1750742658613,10.90826684,144.19,144.16,6.9321]
[1750742658913,5.73317183,144.18,144.16,6.9321]
[1750742659113,45.8927444,144.2,144.16,6.9321]
[1750742659316,10.93953242,144.19,144.16,6.9321]
[1750742659512,5.764426,144.18,144.16,6.9321]
[1750742659815,5.7643842,144.17,144.12,35.5]
[1750742660022,3.4621444,144.18,144.12,35.5]
[1750742660312,5.76031356,144.17,144.11,3.4621444]
[1750742660515,10.3937444,144.18,144.15,6.9327]
[1750742660702,5.76066366,144.17,144.15,6.9327]
[1750742660900,5.76087905,144.16,144.15,6.9327]
[1750742662814,46.43775642,144.16,144.09,43.5416444]
[1750742663005,35.5,144.16,144.11,3.4621444]
[1750742664814,35.5,144.16,144.14,6.9329]
[1750742665115,35.5,144.16,144.11,3.4621444]
[1750742665810,35.5,144.16,144.15,6.9327]
[1750742668913,51.47257305,144.16,144.05,3.46257586]
[1750742669216,5.75412848,144.15,144.09,3.46257586]
[1750742669412,5.75412848,144.14,144.11,6.9343]
[1750742669611,42.4326,144.16,144.11,6.9343]
[1750742669912,5.75428946,144.15,144.11,6.9343]
[1750742670111,42.4326,144.16,144.11,6.9343]
[1750742670314,12.68654675,144.15,144.11,6.9343]
[1750742670619,12.68654675,144.15,144.07,38.96257586]
[1750742670620,3.46257586,144.13,144.03,42.4372]
[1750742670821,53.35710912,144.12,144.04,3.46257586]
[1750742671117,5.75376821,144.11,144.04,3.46257586]
[1750742671314,42.4344,144.12,144.08,6.9358]
[1750742671723,5.7517202,144.11,144.08,6.9358]
[1750742671922,42.4344,144.12,144.08,6.9358]
[1750742672111,5.75169171,144.11,144.08,6.9358]
[1750742672314,42.4344,144.12,144.08,6.9358]
[1750742672628,42.4344,144.12,144.04,3.46257586]
[1750742672824,35.5,144.12,144.04,3.46257586]
[1750742673021,35.5,144.12,144.08,3.46257586]
[1750742673221,35.46,144.15,144.08,3.46257586]
[1750742674625,35.46,144.15,144.12,6.934]
[1750742675029,5.74360879,144.14,144.07,38.92257586]
[1750742675325,38.92257586,144.15,144.07,38.92257586]
[1750742675525,12.67662748,144.14,144.07,38.92257586]
[1750742675715,6.9333,144.14,144.07,38.92257586]
[1750742676326,12.67731483,144.13,144.06,3.46257586]
[1750742676517,6.934,144.13,144.06,3.46257586]
[1750742676717,6.934,144.13,144.09,6.9353]
[1750742676922,6.934,144.13,144.06,3.46257586]
[1750742677918,6.934,144.13,144.09,6.9353]
[1750742679827,3.46257586,144.13,144.09,6.9353]
[1750742680031,5.73221381,144.12,144.09,6.9353]
[1750742680237,3.46257586,144.13,144.09,6.9353]
[1750742680423,5.73125305,144.12,144.09,6.9353]
[1750742680623,3.46257586,144.13,144.09,6.9353]
[1750742680923,5.73107871,144.12,144.09,6.9353]
[1750742681233,6.9343,144.12,144.09,6.9353]
[1750742681833,6.9343,144.12,144.05,3.70257586]
[1750742681834,6.9347,144.11,144.08,6.9359]
[1750742682032,35.46,144.11,144.08,6.9359]
[1750742683931,35.46,144.11,144.09,6.9356]
[1750742688038,35.46,144.11,144.08,6.9359]
[1750742689232,35.46,144.11,144.07,6.9364]
[1750742689427,35.46,144.11,144.05,0.24]
[1750742689832,42.3949,144.11,144.07,6.9363]
[1750742690637,45.85747586,144.11,144.07,6.9363]
[1750742692836,6.9352,144.1,144.07,6.9363]
[1750742693035,38.92257586,144.11,144.06,6.9369]
[1750742693236,5.73092242,144.1,144.06,6.9369]
[1750742693438,43.37647586,144.11,144.05,0.24]
[1750742693641,5.73210388,144.1,144.07,6.9366]
[1750742693944,43.37647586,144.11,144.07,6.9366]
[1750742694146,12.66750388,144.1,144.07,6.9366]
[1750742694443,6.9354,144.1,144.07,6.9366]
[1750742696342,10.40159512,144.1,144.07,6.9366]
[1750742696836,50.31499512,144.11,144.05,0.24]
[1750742697146,37.7118,144.11,144.05,0.24]
[1750742697352,35.46,144.11,144.1,6.9351]
[1750742697744,35.46,144.14,144.08,3.46619512]
[1750742698046,35.46,144.14,144.05,35.7]
[1750742698047,634.56,144.17,144.1,3.46619512]
[1750742698246,634.56,144.17,144.12,3.46619512]
[1750742698549,35.46,144.17,144.15,6.9324]
[1750742699142,35.46,144.17,144.12,10.40029512]
[1750742700147,35.46,144.17,144.1,6.8087]
[1750742700447,9.19407402,144.16,144.08,3.46619512]
[1750742700642,35.46,144.17,144.1,3.46619512]
[1750742701148,35.46,144.17,144.12,10.39999512]
[1750742701350,42.392,144.17,144.12,10.39999512]
[1750742702247,42.392,144.17,144.1,35.46]
[1750742702248,35.46,144.17,144.1,35.46]
[1750742702445,5.72898091,144.16,144.1,3.46619512]
[1750742702648,38.92619512,144.17,144.08,3.46619512]
[1750742702852,3.46619512,144.15,144.08,3.46619512]
[1750742703345,6.9345,144.12,144.08,3.46619512]
[1750742703548,35.3,144.13,144.07,48.06619512]
[1750742704150,6.9348,144.11,144.07,48.06619512]
[1750742704352,35.3,144.13,144.07,48.06619512]
[1750742705756,35.3,144.13,144.08,6.9361]
[1750742706148,6.9345,144.12,144.08,6.9361]
[1750742706343,35.3,144.13,144.09,3.46619512]
[1750742706957,35.3,144.13,144.11,6.9347]
[1750742709358,6.933,144.15,144.11,6.9347]
[1750742710650,6.9332,144.14,144.1,6.9351]
[1750742710854,37.5496,144.16,144.07,37.6635]
[1750742711048,5.75415703,144.15,144.08,3.46619512]
[1750742711249,6.9339,144.13,144.09,6.9353]
[1750742711447,6.9339,144.13,144.09,7.1753]
[1750742712757,42.2333,144.14,144.1,6.9351]
[1750742712959,5.76980499,144.13,144.1,6.9351]
[1750742713161,35.3,144.14,144.1,6.9351]
[1750742713661,42.2335,144.14,144.1,6.9351]
[1750742713851,35.3,144.14,144.1,6.9351]
[1750742714048,10.77178724,144.16,144.1,6.9351]
[1750742714261,46.22898512,144.15,144.1,6.9351]
[1750742714453,6.9337,144.13,144.09,7.1754]
[1750742715862,6.9337,144.13,144.1,6.935]
[1750742716263,6.9337,144.13,144.09,0.24]
[1750742716754,6.9337,144.13,144.1,6.9351]
[1750742717061,6.9333,144.14,144.1,6.9351]
[1750742717264,5.77175014,144.13,144.1,6.9351]
[1750742717462,6.9333,144.14,144.1,6.9351]
[1750742717662,5.77181437,144.13,144.1,6.9351]
[1750742717859,6.9333,144.14,144.1,6.9351]
[1750742718062,5.76277517,144.13,144.1,6.9351]
[1750742718262,6.9333,144.14,144.1,6.9351]
[1750742718562,12.69632958,144.13,144.1,6.9351]
[1750742718761,6.9337,144.13,144.1,6.9351]
[1750742719059,8.52370153,144.14,144.09,0.24]
[1750742719263,10.97909483,144.13,144.09,0.24]
[1750742719565,10.97909483,144.12,144.09,0.24]
[1750742719767,41.09360417,144.11,144.09,0.24]
[1750742720063,5.79400872,144.1,144.09,0.24]
[1750742720261,5.79400028,144.1,144.09,0.24]
[1750742720465,5.79392958,144.1,144.09,0.24]
[1750742720966,35.3,144.11,144.09,0.24]
[1750742721660,9.25950688,144.1,144.0,3.46544719]
[1750742721867,3.46544719,144.08,144.0,3.46544719]
[1750742722061,35.3,144.07,144.0,3.46544719]
[1750742722253,35.3,144.07,144.04,6.938]
[1750742722458,35.3,144.07,144.0,3.46544719]
[1750742722660,35.3,144.07,144.02,3.46544719]
[1750742722964,35.3,144.07,144.04,3.46544719]
[1750742723162,35.3,144.07,144.05,6.9371]
[1750742723365,35.3,144.07,144.04,3.46544719]
[1750742723566,35.3,144.1,144.04,3.46544719]
[1750742724267,35.3,144.13,144.06,3.46544719]
[1750742724462,5.77810148,144.12,144.08,3.46544719]
[1750742724667,35.3,144.13,144.08,3.46544719]
[1750742724867,5.77815821,144.12,144.08,3.46544719]
[1750742725073,9.388e-05,144.15,144.09,35.3]
[1750742725263,3.46544719,144.22,144.15,3.46544719]
[1750742725561,5.77502022,144.21,144.15,3.46544719]
[1750742725765,11.98681396,144.23,144.15,3.46544719]
[1750742725966,5.77118572,144.22,144.15,3.46544719]
[1750742726161,5.77118572,144.21,144.15,3.46544719]
[1750742726363,6.9292,144.23,144.15,3.46544719]
[1750742726566,5.76731155,144.22,144.15,3.46544719]
[1750742726767,6.9292,144.23,144.15,3.46544719]
[1750742726962,5.76732955,144.22,144.15,3.46544719]
[1750742727161,5.79871945,144.21,144.17,6.9317]
[1750742727466,44.55926315,144.2,144.13,38.76036315]
[1750742727670,41.0989,144.19,144.15,6.9323]
[1750742727969,35.3,144.19,144.15,6.9323]
[1750742728362,35.3,144.19,144.16,6.9321]
[1750742729678,35.3,144.19,144.15,6.9326]
[1750742731968,35.3,144.19,144.1,5.76864968]
[1750742732172,16.37282745,144.18,144.09,6.9954]
[1750742732469,12.73107777,144.17,144.12,6.9337]
[1750742732669,5.79897777,144.16,144.12,6.9337]
[1750742732870,35.64,144.15,144.12,6.9337]
[1750742734570,35.64,144.15,144.11,6.9345]
[1750742734869,35.64,144.15,144.08,41.40864968]
[1750742735065,35.64,144.15,144.08,35.64]
[1750742735266,12.73485553,144.14,144.1,6.9351]
[1750742735566,5.80197088,144.13,144.05,161.95840492]
[1750742735770,5.80211353,144.12,144.07,6.9363]
[1750742735973,6.9347,144.11,144.07,6.9363]
[1750742736174,42.5747,144.11,144.07,6.9363]
[1750742736964,35.64,144.11,144.08,6.9361]
[1750742738672,42.5747,144.11,144.07,6.9364]
[1750742738876,5.78149437,144.1,144.05,126.31840492]
[1750742739176,6.9352,144.1,144.05,126.31840492]
[1750742739372,6.9352,144.1,144.07,6.9365]
[1750742740073,6.9352,144.1,144.06,6.937]
[1750742740377,12.71742564,144.09,144.06,6.937]
[1750742740672,5.76864968,144.1,144.03,35.64]
[1750742740872,5.76864968,144.08,143.99,35.64]
[1750742741174,35.64,144.07,144.03,6.9384]
[1750742741576,35.64,144.07,144.04,6.9377]
[1750742742777,42.5766,144.07,144.04,6.9377]
[1750742743477,42.5766,144.07,143.99,35.64]
[1750742743478,6.9372,144.06,143.99,35.64]
[1750742744566,5.76864968,144.06,143.96,6.9475]
[1750742744767,5.76864968,144.04,143.94,5.76864968]
[1750742744965,35.64,144.03,143.94,5.76864968]
[1750742745172,42.5787,144.03,143.98,6.9405]
[1750742745378,35.64,144.03,143.98,6.9405]
[1750742745577,35.64,144.03,143.94,5.76864968]
[1750742746379,42.5785,144.03,143.99,6.9403]
[1750742749579,6.939,144.02,143.98,6.9407]
[1750742750273,6.939,144.02,143.99,6.9404]
[1750742750686,6.939,144.02,143.97,6.941]
[1750742750885,6.939,144.02,143.94,5.76864968]
[1750742751885,42.5787,144.03,143.99,6.9404]
[1750742757290,2.2659,144.05,143.98,3.4691666]
[1750742757487,35.66,144.05,144.0,3.46769712]
[1750742757984,35.66,144.05,144.04,6.938]
[1750742759084,35.66,144.05,144.0,3.46769712]
[1750742759591,35.66,144.05,144.04,6.938]
[1750742763384,35.66,144.05,144.03,6.9384]
[1750742764690,35.66,144.05,144.04,6.938]
[1750742766895,35.66,144.05,144.03,6.9383]
[1750742769895,35.66,144.05,144.04,6.938]
[1750742770198,35.36,144.08,144.03,3.46697647]
[1750742770502,35.36,144.08,144.06,6.9369]
[1750742771304,35.36,144.11,144.06,3.46697647]
[1750742771699,42.2947,144.11,144.07,6.9363]
[1750742772199,35.36,144.11,144.06,3.46697647]
[1750742772392,35.36,144.11,144.08,6.9357]
[1750742772588,35.36,144.11,144.06,3.46697647]
[1750742772993,35.36,144.14,144.06,3.46697647]
[1750742773193,42.2935,144.14,144.1,6.9351]
[1750742773595,38.82697647,144.14,144.06,3.46697647]
[1750742774593,6.9339,144.13,144.09,6.9353]